fUST/lending_fUST_20240710
["ID","MTS","AMOUNT","RATE_DAILY","PERIOD"]
[331643683,1720599944301,949.87269217,0.00015,2]
[331643684,1720599945148,286.97734619,0.00014999,2]
[331643685,1720599945967,902.00746236,0.00015,2]
[331643686,1720599950556,1202.27563998,0.00014999,2]
[331643688,1720599954368,402.60952539,0.00014999,2]
[331643689,1720599955158,662.40219375,0.00014999,2]
[331643690,1720599955580,987.07617468,0.00015,2]
[331643691,1720599959196,10592.65053646,0.00014998,2]
[331643692,1720599966965,725.50158015,0.00014999,2]
[331643693,1720599966998,185.99025348,0.00014999,2]
[331643694,1720599969359,402.60952539,0.00014999,2]
[331643695,1720599969530,179.97189068,0.00014999,2]
[331643696,1720599970187,269.68177373,0.00014999,2]
[331643697,1720599970466,195.91834676,0.00014999,2]
[331643698,1720599972346,154.69833824,0.00014999,2]
[331643699,1720599972876,308.51871438,0.00014999,2]
[331643700,1720599976042,518.1114155,0.00014999,2]
[331643701,1720599976398,213.44755041,0.00014999,2]
[331643702,1720599978673,624.76162171,0.00014999,2]
[331643703,1720599978918,844.60693281,0.00014999,2]
[331643704,1720599983878,187.7887475,0.00014999,2]
[331643705,1720599987502,530.20355034,0.00014999,2]
[331643706,1720599988726,206.16721264,0.00014999,2]
[331643707,1720599993368,181.99358522,0.00014999,2]
[331643708,1720599994931,154.69833824,0.00014999,2]
[331643709,1720599995129,885.90879381,0.00014999,2]
[331643710,1720599995337,935.07993032,0.00014999,2]
[331643711,1720599995906,293.34094347,0.00014999,2]
[331643712,1720599996878,1021.01562525,0.00015,2]
[331643713,1720599997577,4699.77945018,0.00014999,2]
[331643714,1720599998545,777.60346913,0.00014999,2]
[331643715,1720599998919,187.7887475,0.00014999,2]
[331643716,1720599999468,530.20355034,0.00014999,2]
[331643717,1720599999969,1987.94718132,0.00014999,2]
[331643718,1720600001767,524.02241824,0.00014999,2]
[331643719,1720600002577,2103.07500102,0.00014999,2]
[331643720,1720600003690,208.78770674,0.00014999,2]
[331643721,1720600008826,2126.96804732,0.00014999,2]
[331643722,1720600009564,777.60346913,0.00014999,2]
[331643723,1720600012969,2232.01411956,0.00014999,2]
[331643724,1720600021978,188.82596882,0.00015,2]
[331643725,1720600027589,4699.77945018,0.00014999,2]
[331643727,1720600031456,492.75452642,0.00014999,2]
[331643728,1720600033304,1537.888247,0.00015225,2]
[331643729,1720600039811,1490.60581636,0.00014999,2]
[331643730,1720600046553,458.44819353,0.00014999,2]
[331643731,1720600047069,532.42648906,0.00014999,2]
[331643732,1720600048342,16250.44495325,0.00014999,2]
[331643733,1720600049405,154.69833824,0.00014999,2]
[331643734,1720600049751,213.08929994,0.00014999,2]
[331643735,1720600050823,209.28660365,0.00014999,2]
[331643736,1720600054193,283.43817222,0.00014999,2]
[331643737,1720600062155,240.12803383,0.00014999,2]
[331643738,1720600064407,154.69833824,0.00014999,2]
[331643739,1720600067262,374.87856273,0.00014999,2]
[331643740,1720600067788,909.07625877,0.00014999,2]
[331643741,1720600069160,305.31497228,0.00014999,2]
[331643742,1720600070441,403.6290569,0.00014999,2]
[331643743,1720600078345,16250.44495325,0.00014999,2]
[331643744,1720600082306,318.82736005,0.00014999,2]
[331643745,1720600085263,181.99358522,0.00014999,2]
[331643746,1720600088472,195.91834676,0.00014999,2]
[331643747,1720600089888,308.51871438,0.00014999,2]
[331643748,1720600090310,949.87269217,0.00015,2]
[331643751,1720600096412,154.69833824,0.00014999,2]
[331643752,1720600103850,154.69833824,0.00014999,2]
[331643753,1720600112086,2103.07500102,0.00014999,2]
[331643754,1720600113347,286.97734619,0.00014999,2]
[331643755,1720600120141,706.5455114,0.00014999,2]
[331643757,1720600125153,662.40219375,0.00014999,2]
[331643758,1720600127200,518.1114155,0.00014999,2]
[331643759,1720600139476,725.50158015,0.00014999,2]
[331643760,1720600143168,286.97734619,0.00014999,2]
[331643761,1720600144250,213.08929994,0.00014999,2]
[331643762,1720600145385,402.60952539,0.00014999,2]
[331643763,1720600146596,4699.77945018,0.00014999,2]
[331643764,1720600147043,179.97189068,0.00014999,2]
[331643765,1720600151279,-300.0,0.00015921,2]
[331643766,1720600151308,-480.50046532,0.00015922,2]
[331643767,1720600151368,935.07993032,0.00014999,2]
[331643768,1720600151511,-780.50046532,0.00015922,2]
[331643769,1720600151577,-780.50046532,0.00015922,2]
[331643770,1720600152257,222.31956805,0.00014999,2]
[331643771,1720600154473,725.50158015,0.00014999,2]
[331643772,1720600156891,187.7887475,0.00014999,2]
[331643773,1720600158563,777.60346913,0.00014999,2]
[331643774,1720600159765,524.02241824,0.00014999,2]
[331643775,1720600161479,530.20355034,0.00014999,2]
[331643776,1720600162044,179.97189068,0.00014999,2]
[331643777,1720600175995,802.62823304,0.00014999,2]
[331643778,1720600179535,492.75452642,0.00014999,2]
[331643779,1720600183360,16283.57734569,0.00014999,2]
[331643780,1720600187262,174.66182123,0.00014999,2]
[331643781,1720600189582,458.44819353,0.00014999,2]
[331643782,1720600189668,208.78770674,0.00014999,2]
[331643783,1720600195212,283.43817222,0.00014999,2]
[331643784,1720600199944,844.60693281,0.00014999,2]
[331643785,1720600200447,403.6290569,0.00014999,2]
[331643786,1720600209127,160.55203258,0.00014999,2]
[331643787,1720600209693,208.78770674,0.00014999,2]
[331643788,1720600215759,374.58312879,0.00014999,2]
[331643789,1720600216792,909.07625877,0.00014999,2]
[331643790,1720600219585,2103.07500102,0.00014999,2]
[331643791,1720600220667,240.12803383,0.00014999,2]
[331643792,1720600226397,346.02023561,0.00014999,2]
[331643793,1720600228614,4699.77945018,0.00014999,2]
[331643794,1720600229410,154.69833824,0.00014999,2]
[331644000,1720600237857,154.69833824,0.00014999,2]
[331644020,1720600238093,-300.0,0.00015921,2]
[331644022,1720600238104,-300.0,0.00015921,2]
[331644025,1720600238115,-22858.49860404,0.00015922,2]
[331644027,1720600238124,-961.48547612,0.00016,2]
[331644029,1720600238135,-2478.60327244,0.00016144,2]
[331644030,1720600238146,-6418.26721291,0.00016155,2]
[331644032,1720600238156,-303.76552302,0.00016244,2]
[331644034,1720600238166,-69911.5896094,0.00016245,2]
[331644036,1720600238176,-247.67904378,0.00016254,2]
[331644038,1720600238188,-500.0,0.00016254,2]
[331644040,1720600238199,-180.50959236,0.00016254,2]
[331644042,1720600238209,-500.0,0.00016254,2]
[331644044,1720600238219,-500.0,0.00016254,2]
[331644046,1720600238229,-500.0,0.00016254,2]
[331644048,1720600238239,-506.20025465,0.00016254,2]
[331644050,1720600238250,-500.0,0.00016254,2]
[331644052,1720600238260,-372.68813329,0.00016254,2]
[331644054,1720600238270,-184.42769147,0.00016254,2]
[331644056,1720600238280,-222.9111394,0.00016254,2]
[331644058,1720600238290,-396.86262553,0.00016254,2]
[331644060,1720600238300,-500.0,0.00016254,2]
[331644062,1720600238310,-500.0,0.00016254,2]
[331644064,1720600238320,-502.70536761,0.00016254,2]
[331644067,1720600238331,-15777.11648533,0.00016255,2]
[331644069,1720600238343,-17261.11502567,0.00016255,2]
[331644071,1720600238352,-34951.80135124,0.00016255,2]
[331644073,1720600238362,-195.91834676,0.00016255,2]
[331644074,1720600238372,-504.66301762,0.00016255,2]
[331644076,1720600238381,-247.41329512,0.00016255,2]
[331644078,1720600238392,-195.91834676,0.00016255,2]
[331644081,1720600238403,-217.03833574,0.00016255,2]
[331644083,1720600238412,-154.69833824,0.00016255,2]
[331644085,1720600238422,-767.59508172,0.00016255,2]
[331644087,1720600238432,-427.74793225,0.00016255,2]
[331644089,1720600238441,-518.1114155,0.00016255,2]
[331644090,1720600238451,-530.20355034,0.00016255,2]
[331644093,1720600238461,-420.0,0.00017513,2]
[331644094,1720600238470,-1000.0,0.00018,5]
[331644097,1720600238480,-155.11378883,0.0001818,2]
[331644098,1720600238490,-287.51223328,0.0001818,2]
[331644100,1720600238500,-398.86979349,0.0001818,2]
[331644102,1720600238510,-285.0805891,0.0001818,2]
[331644104,1720600238521,-402.60952539,0.0001818,2]
[331644106,1720600238530,-213.08929994,0.0001818,2]
[331644108,1720600238540,-187.7887475,0.0001818,2]
[331644110,1720600238550,-725.50158015,0.0001818,2]
[331644112,1720600238562,-445.62789817,0.0001818,2]
[331644114,1720600238573,-179.97189068,0.0001818,2]
[331644117,1720600238583,-777.60346913,0.0001818,2]
[331644118,1720600238594,-57244.60275606,0.0001818,2]
[331644120,1720600238604,-492.75452642,0.0001818,2]
[331644122,1720600238615,-34955.7948047,0.00018516,2]
[331644124,1720600238625,-4096.59357441,0.000189,2]
[331644126,1720600238636,-1000.0,0.00019,19]
[331644128,1720600238648,-162.009859,0.00019178,2]
[331644130,1720600238658,-587.0,0.00019265,2]
[331644132,1720600238669,-6418.26721291,0.00019567,2]
[331644134,1720600238679,-34955.7948047,0.0001978,2]
[331644136,1720600238689,-34955.7948047,0.0001979,2]
[331644138,1720600238700,-200.0,0.000198,2]
[331644140,1720600238711,-52142.01242753,0.000198,2]
[331644142,1720600238721,-200.0,0.00019876,2]
[331644144,1720600238732,-293.51863292,0.0002,2]
[331644146,1720600238743,-909.85449298,0.0002,2]
[331644148,1720600238754,-154.71595376,0.0002,2]
[331644150,1720600238764,-155.87792032,0.0002,2]
[331644152,1720600238774,-155.10277586,0.0002,2]
[331644154,1720600238785,-2478.60327244,0.00020252,2]
[331644156,1720600238795,-624.33735855,0.00021,2]
[331644158,1720600238806,-474.432266,0.00021096,2]
[331644160,1720600238816,-400.0,0.0002117,2]
[331644162,1720600238827,-823.0,0.00021191,2]
[331644164,1720600238838,-400.0,0.00021246,2]
[331644166,1720600238848,-166.666666,0.00021918,2]
[331644168,1720600238858,-620.21686793,0.0002205,2]
[331644170,1720600238868,-166.666666,0.00022431,2]
[331644172,1720600238879,-1537.888247,0.00022837,2]
[331644174,1720600238888,-459.59051957,0.00022943,2]
[331644176,1720600238901,-500.0,0.00022943,2]
[331644178,1720600238912,-500.0,0.00022943,2]
[331644180,1720600238923,-500.0,0.00022943,2]
[331644182,1720600238933,-500.0,0.00022943,2]
[331644184,1720600238946,-500.0,0.00022943,2]
[331644186,1720600238958,-626.72880479,0.00022943,2]
[331644188,1720600238968,-500.0,0.00022943,2]
[331644190,1720600238979,-500.0,0.00022943,2]
[331644192,1720600238989,-500.0,0.00022943,2]
[331644194,1720600239000,-177.95825967,0.00022943,2]
[331644196,1720600239011,-166.666666,0.00022944,2]
[331644198,1720600239021,-600.0,0.00022947,2]
[331644200,1720600239032,-6418.26721291,0.00022979,2]
[331644202,1720600239042,-600.0,0.00023023,2]
[331644204,1720600239053,-620.0108434,0.00023153,2]
[331644206,1720600239063,-1152.0,0.0002331,2]
[331644208,1720600239074,-166.666666,0.00023456,2]
[331644210,1720600239085,-4096.59357441,0.000239,2]
[331644212,1720600239095,-166.666666,0.00023969,2]
[331644213,1720600239105,-150.09377191,0.00024089,2]
[331644214,1720600239115,-150.0,0.00024089,2]
[331644216,1720600239126,-620.00054217,0.0002431,2]
[331644218,1720600239136,-34955.7948047,0.00024347,3]
[331644220,1720600239149,-2478.60327244,0.0002436,2]
[331644222,1720600239160,-166.666666,0.00024482,2]
[331644224,1720600239171,-250.0,0.00024637,2]
[331644226,1720600239181,-150.511695,0.000247,2]
[331644228,1720600239192,-310.73688205,0.000247,2]
[331644230,1720600239202,-800.0,0.00024919,2]
[331644232,1720600239213,-34955.7948047,0.0002499,3]
[331644234,1720600239223,-852.30199023,0.00024996,2]
[331644236,1720600239234,-1000.0,0.00025,2]
[331644237,1720600239245,-350.0,0.00025185,2]
[331644238,1720600239255,-151.0,0.00025501,7]
[331644239,1720600239265,-151.0,0.00025501,7]
[331644240,1720600239275,-13556.25487016,0.00025501,2]
[331644241,1720600239285,-600.0,0.00025641,2]
[331644242,1720600239296,-484.69491943,0.00025733,2]
[331644243,1720600239306,-1000.0,0.00026,26]
[331644244,1720600239317,-6418.26721291,0.00026391,2]
[331644245,1720600239327,-3000.0,0.000265,2]
[331644250,1720600239402,-3000.0,0.0002651,2]
[331644252,1720600239414,-3000.0,0.0002652,2]
[331644255,1720600239427,-3000.0,0.0002653,2]
[331644256,1720600239437,-3000.0,0.0002654,2]
[331644257,1720600239448,-3000.0,0.0002655,2]
[331644258,1720600239459,-34955.7948047,0.0002655,3]
[331644259,1720600239470,-3000.0,0.0002656,2]
[331644260,1720600239480,-3000.0,0.0002657,2]
[331644261,1720600239490,-151.0,0.0002658,7]
[331644262,1720600239500,-3000.0,0.0002658,2]
[331644263,1720600239511,-3000.0,0.0002659,2]
[331644264,1720600239521,-34955.7948047,0.0002659,3]
[331644266,1720600239532,-160.437585,0.000266,7]
[331644267,1720600239542,-3000.0,0.000266,2]
[331644269,1720600239552,-151.0,0.000266,7]
[331644270,1720600239563,-151.0,0.000266,7]
[331644271,1720600239573,-3000.0,0.0002661,2]
[331644272,1720600239583,-3000.0,0.0002662,2]
[331644273,1720600239594,-3000.0,0.0002663,2]
[331644274,1720600239604,-151.0,0.0002663,7]
[331644275,1720600239615,-3611.781749,0.0002663,7]
[331644276,1720600239626,-3611.781749,0.0002663,7]
[331644277,1720600239635,-3000.0,0.0002664,2]
[331644278,1720600239647,-3000.0,0.0002665,2]
[331644279,1720600239657,-1507.17450575,0.0002666,2]
[331644280,1720600239672,-1492.82549425,0.0002666,2]
[331644281,1720600239682,-3072.265105,0.0002667,2]
[331644282,1720600239692,-1000.0,0.0002703,2]
[331644283,1720600239701,-168.363412,0.00027123,2]
[331644284,1720600239711,-168.363412,0.00027123,120]
[331644285,1720600239720,-474.432266,0.00027195,2]
[331644286,1720600239730,-34955.7948047,0.00027377,3]
[331644287,1720600239740,-194.28969965,0.00027397,2]
[331644288,1720600239749,-500.0,0.00027397,2]
[331644289,1720600239760,-500.0,0.00027397,2]
[331644290,1720600239770,-500.0,0.00027397,2]
[331644292,1720600239780,-500.0,0.00027397,2]
[331644293,1720600239790,-500.0,0.00027397,2]
[331644295,1720600239801,-500.0,0.00027397,2]
[331644297,1720600239810,-500.0,0.00027397,2]
[331644299,1720600239820,-500.0,0.00027397,2]
[331644301,1720600239831,-500.0,0.00027397,2]
[331644303,1720600239841,-500.0,0.00027397,2]
[331644305,1720600239851,-500.0,0.00027397,2]
[331644307,1720600239861,-500.0,0.00027397,2]
[331644309,1720600239871,-500.0,0.00027397,2]
[331644311,1720600239882,-500.0,0.00027397,2]
[331644313,1720600239894,-500.0,0.00027397,2]
[331644315,1720600239903,-500.0,0.00027397,2]
[331644316,1720600239914,-500.0,0.00027397,2]
[331644318,1720600239925,-500.0,0.00027397,2]
[331644320,1720600239936,-500.0,0.00027397,2]
[331644322,1720600239946,-500.0,0.00027397,2]
[331644324,1720600239956,-500.0,0.00027397,2]
[331644326,1720600239967,-500.0,0.00027397,2]
[331644328,1720600239977,-500.0,0.00027397,2]
[331644330,1720600239988,-500.0,0.00027397,2]
[331644332,1720600239998,-500.0,0.00027397,2]
[331644334,1720600240008,-500.0,0.00027397,2]
[331644336,1720600240018,-500.0,0.00027397,2]
[331644338,1720600240027,-500.0,0.00027397,2]
[331644340,1720600240037,-500.0,0.00027397,2]
[331644342,1720600240047,-500.0,0.00027397,2]
[331644344,1720600240057,-500.0,0.00027397,2]
[331644345,1720600240067,-500.0,0.00027397,2]
[331644347,1720600240078,-500.0,0.00027397,2]
[331644349,1720600240088,-500.0,0.00027397,2]
[331644351,1720600240098,-500.0,0.00027397,2]
[331644354,1720600240108,-500.0,0.00027397,2]
[331644355,1720600240118,-500.0,0.00027397,2]
[331644357,1720600240128,-500.0,0.00027397,2]
[331644360,1720600240138,-500.0,0.00027397,2]
[331644361,1720600240149,-500.0,0.00027397,2]
[331644364,1720600240160,-500.0,0.00027397,2]
[331644365,1720600240170,-500.0,0.00027397,2]
[331644367,1720600240180,-500.0,0.00027397,2]
[331644369,1720600240190,-500.0,0.00027397,2]
[331644371,1720600240200,-500.0,0.00027397,2]
[331644374,1720600240210,-466.96882568,0.00027397,2]
[331644375,1720600240220,-500.0,0.00027397,2]
[331644377,1720600240230,-500.0,0.00027397,2]
[331644379,1720600240239,-500.0,0.00027397,2]
[331644381,1720600240249,-500.0,0.00027397,2]
[331644383,1720600240259,-500.0,0.00027397,2]
[331644385,1720600240270,-500.0,0.00027397,2]
[331644387,1720600240280,-742.97036556,0.00027397,2]
[331644389,1720600240291,-742.97036556,0.00027397,2]
[331644391,1720600240300,-742.97036556,0.00027397,2]
[331644393,1720600240310,-742.97036556,0.00027397,2]
[331644395,1720600240320,-742.97036556,0.00027397,2]
[331644396,1720600240330,-742.97036556,0.00027397,2]
[331644397,1720600240340,-742.97036556,0.00027397,2]
[331644398,1720600240349,-742.97036556,0.00027397,2]
[331644399,1720600240359,-742.97036556,0.00027397,2]
[331644400,1720600240369,-742.97036556,0.00027397,2]
[331644401,1720600240378,-742.97036556,0.00027397,2]
[331644402,1720600240388,-742.97036556,0.00027397,2]
[331644403,1720600240400,-742.97036556,0.00027397,2]
[331644404,1720600240410,-742.97036556,0.00027397,2]
[331644405,1720600240419,-742.97036556,0.00027397,2]
[331644406,1720600240429,-742.97036556,0.00027397,2]
[331644407,1720600240439,-742.97036556,0.00027397,2]
[331644408,1720600240449,-742.97036556,0.00027397,2]
[331644409,1720600240459,-742.97036556,0.00027397,2]
[331644410,1720600240468,-742.97036556,0.00027397,2]
[331644411,1720600240477,-742.97036556,0.00027397,2]
[331644412,1720600240487,-742.97036556,0.00027397,2]
[331644413,1720600240497,-742.97036556,0.00027397,2]
[331644414,1720600240507,-742.97036556,0.00027397,2]
[331644415,1720600240516,-742.97036556,0.00027397,2]
[331644416,1720600240526,-742.97036556,0.00027397,2]
[331644417,1720600240535,-742.97036556,0.00027397,2]
[331644418,1720600240545,-742.97036556,0.00027397,2]
[331644419,1720600240555,-842.97036555,0.00027397,2]
[331644420,1720600240564,-842.97036555,0.00027397,2]
[331644421,1720600240574,-842.97036555,0.00027397,2]
[331644422,1720600240583,-842.97036555,0.00027397,2]
[331644423,1720600240593,-842.97036555,0.00027397,2]
[331644424,1720600240603,-842.97036555,0.00027397,2]
[331644425,1720600240618,-842.97036555,0.00027397,2]
[331644426,1720600240684,-842.97036555,0.00027397,2]
[331644427,1720600240694,-842.97036555,0.00027397,2]
[331644428,1720600240703,-248.60729687,0.00027397,2]
[331644429,1720600240713,-500.0,0.00027397,2]
[331644430,1720600240723,-500.0,0.00027397,2]
[331644431,1720600240733,-500.0,0.00027397,2]
[331644432,1720600240743,-151.0,0.00027397,7]
[331644433,1720600240753,-151.0,0.00027397,7]
[331644434,1720600240763,-151.0,0.00027397,7]
[331644435,1720600240773,-3611.781749,0.00027397,7]
[331644436,1720600240783,-3611.781749,0.00027397,7]
[331644437,1720600240796,-151.0,0.00027397,7]
[331644438,1720600240806,-151.0,0.00027397,7]
[331644440,1720600240817,-151.0,0.00027397,7]
[331644442,1720600240827,-151.0,0.00027397,7]
[331644444,1720600240837,-151.0,0.00027397,7]
[331644446,1720600240847,-151.0,0.00027397,7]
[331644448,1720600240856,-248.909497,0.00027397,7]
[331644450,1720600240866,-248.909497,0.00027397,7]
[331644451,1720600240876,-151.0,0.00027397,7]
[331644452,1720600240885,-151.0,0.00027397,7]
[331644453,1720600240896,-266.761945,0.00027397,7]
[331644454,1720600240905,-266.761945,0.00027397,7]
[331644455,1720600240915,-151.0,0.00027397,7]
[331644456,1720600240926,-160.1527,0.00027397,7]
[331644457,1720600240938,-1500.000357,0.00027397,7]
[331644458,1720600240948,-1500.000357,0.00027397,7]
[331644459,1720600240958,-1500.000357,0.00027397,7]
[331644460,1720600240968,-1500.000357,0.00027397,7]
[331644461,1720600240981,-381.36855,0.00027397,7]
[331644462,1720600240992,-151.0,0.00027397,7]
[331644463,1720600241002,-151.0,0.00027397,7]
[331644464,1720600241012,-381.36855,0.00027397,7]
[331644465,1720600241023,-151.0,0.00027397,7]
[331644466,1720600241033,-163.177901,0.00027397,7]
[331644467,1720600241043,-394.15192,0.00027397,2]
[331644468,1720600241053,-394.15192,0.00027397,2]
[331644469,1720600241063,-209.698295,0.00027397,7]
[331644470,1720600241073,-209.698295,0.00027397,7]
[331644471,1720600241083,-394.15192,0.00027397,2]
[331644472,1720600241093,-209.698295,0.00027397,7]
[331644473,1720600241102,-209.698295,0.00027397,7]
[331644474,1720600241111,-394.15192,0.00027397,2]
[331644475,1720600241121,-264.379763,0.00027397,7]
[331644476,1720600241131,-264.379763,0.00027397,7]
[331644477,1720600241140,-264.379763,0.00027397,7]
[331644478,1720600241151,-264.379763,0.00027397,7]
[331644479,1720600241160,-151.0,0.00027397,7]
[331644480,1720600241170,-151.0,0.00027397,7]
[331644481,1720600241179,-1902.568805,0.00027397,7]
[331644482,1720600241189,-1902.568805,0.00027397,7]
[331644483,1720600241199,-1902.568805,0.00027397,7]
[331644484,1720600241208,-1902.568805,0.00027397,7]
[331644485,1720600241217,-216.730068,0.00027397,120]
[331644486,1720600241227,-367.18392,0.00027397,7]
[331644487,1720600241236,-367.18392,0.00027397,7]
[331644488,1720600241246,-367.18392,0.00027397,7]
[331644489,1720600241256,-367.18392,0.00027397,7]
[331644490,1720600241265,-342.315555,0.00027397,7]
[331644491,1720600241275,-342.315555,0.00027397,7]
[331644492,1720600241285,-342.315555,0.00027397,7]
[331644493,1720600241294,-342.315555,0.00027397,7]
[331644495,1720600241304,-569.151142,0.00027397,7]
[331644496,1720600241314,-569.151142,0.00027397,7]
[331644497,1720600241324,-569.151142,0.00027397,7]
[331644498,1720600241338,-569.151142,0.00027397,7]
[331644499,1720600241357,-904.820281,0.00027397,7]
[331644500,1720600241370,-904.820281,0.00027397,7]
[331644501,1720600241380,-904.820281,0.00027397,7]
[331644502,1720600241390,-904.820281,0.00027397,7]
[331644503,1720600241408,-904.820281,0.00027397,7]
[331644504,1720600241422,-904.820281,0.00027397,7]
[331644505,1720600241438,-183.476519,0.00027397,7]
[331644506,1720600241448,-183.476519,0.00027397,7]
[331644507,1720600241457,-183.476519,0.00027397,7]
[331644508,1720600241467,-183.476519,0.00027397,7]
[331644509,1720600241478,-183.476519,0.00027397,7]
[331644510,1720600241487,-183.476519,0.00027397,7]
[331644511,1720600241498,-229.31696231,0.00028,30]
[331644512,1720600241508,-200.70554428,0.00028,2]
[331644513,1720600241518,-158.5,0.00028342,2]
[331644514,1720600241527,-2478.60327244,0.00028468,2]
[331644515,1720600241537,-158.5,0.00029038,3]
[331644516,1720600241546,-1200.0,0.0002925,2]
[331644517,1720600241556,-158.5,0.00029734,3]
[331644518,1720600241565,-30000.0,0.00029793,2]
[331644519,1720600241575,-367.18392,0.00029793,7]
[331644520,1720600241584,-367.18392,0.00029793,7]
[331644521,1720600241594,-6418.26721291,0.00029803,2]
[331644522,1720600241603,-264.379763,0.00029803,7]
[331644523,1720600241612,-264.379763,0.00029803,7]
[331644524,1720600241622,-151.0,0.00029803,7]
[331644525,1720600241632,-1902.568805,0.00029803,7]
[331644526,1720600241642,-1902.568805,0.00029803,7]
[331644527,1720600241652,-212.545102,0.00029813,7]
[331644528,1720600241662,-394.15192,0.00029813,2]
[331644529,1720600241671,-209.698295,0.00029813,7]
[331644530,1720600241681,-394.15192,0.00029813,2]
[331644531,1720600241690,-209.698295,0.00029813,7]
[331644532,1720600241700,-342.315555,0.00029813,7]
[331644533,1720600241709,-342.315555,0.00029813,7]
[331644534,1720600241719,-569.151142,0.00029813,7]
[331644535,1720600241728,-569.151142,0.00029813,7]
[331644536,1720600241738,-167.650171,0.00029813,7]
[331644537,1720600241748,-3611.781749,0.00029813,7]
[331644538,1720600241758,-3611.781749,0.00029813,7]
[331644539,1720600241767,-248.909497,0.00029903,7]
[331644540,1720600241777,-248.909497,0.00029903,7]
[331644541,1720600241787,-151.0,0.00029903,7]
[331644542,1720600241797,-151.0,0.00029903,7]
[331644543,1720600241861,-266.761945,0.00029903,7]
[331644544,1720600241871,-266.761945,0.00029903,7]
[331644545,1720600241880,-381.36855,0.00029903,7]
[331644546,1720600241891,-381.36855,0.00029903,7]
[331644547,1720600241913,-9621.97492075,0.00029903,2]
[331644548,1720600241926,-9621.97492075,0.00029903,2]
[331644549,1720600241938,-153.152185,0.00029999,7]
[331644550,1720600241950,-155.36732,0.00029999,7]
[331644551,1720600241961,-12027.61194003,0.00029999,2]
[331644552,1720600241972,-904.820281,0.00029999,7]
[331644553,1720600241984,-904.820281,0.00029999,7]
[331644554,1720600241995,-151.0,0.00029999,7]
[331644555,1720600242006,-183.476519,0.00029999,7]
[331644556,1720600242017,-183.476519,0.00029999,7]
[331644557,1720600242028,-170.47875529,0.0003,4]
[331644558,1720600242038,-184.97176497,0.0003,2]
[331644559,1720600242049,-168.0,0.0003,2]
[331644560,1720600242059,-2000.0,0.0003,30]
[331644561,1720600242070,-202.0,0.0003,2]
[331644562,1720600242080,-150.0,0.00030004,2]
[331644563,1720600242091,-168.0,0.00030411,2]
[331644564,1720600242102,-158.5,0.0003043,3]
[331644565,1720600242113,-158.5,0.00031127,4]
[331644566,1720600242124,-1400.0,0.00031561,2]
[331644567,1720600242135,-168.0,0.00031644,2]
[331644568,1720600242150,-158.5,0.00031823,4]
[331644569,1720600242160,-158.5,0.00032519,4]
[331644570,1720600242171,-2478.60327244,0.00032576,2]
[331644571,1720600242181,-1406.0,0.0003287,2]
[331644572,1720600242193,-262.616,0.0003287,2]
[331644573,1720600242204,-500.0,0.00032877,7]
[331644574,1720600242215,-500.0,0.00032877,7]
[331644575,1720600242225,-500.0,0.00032877,7]
[331644576,1720600242236,-500.0,0.00032877,7]
[331644577,1720600242246,-500.0,0.00032877,7]
[331644578,1720600242257,-177.655455,0.00032877,7]
[331644579,1720600242267,-150.0,0.00032877,2]
[331644580,1720600242278,-654.58373183,0.00033,3]
[331644581,1720600242290,-292.55335768,0.00033,7]
[331644582,1720600242300,-1981.441716,0.00033,60]
[331644583,1720600242310,-202.0,0.00033,2]
[331644584,1720600242320,-202.0,0.00033,2]
[331644585,1720600242330,-160.0,0.00033182,3]